fUSD/lending_fUSD_20240327
["ID","MTS","AMOUNT","RATE_DAILY","PERIOD"]
[320708482,1711524660102,-151.0,0.00055067,120]
[320708483,1711524660112,-151.0,0.00055067,120]
[320708484,1711524660122,-151.0,0.00055067,120]
[320708485,1711524660131,-151.0,0.00055067,120]
[320708486,1711524660144,-151.0,0.00055067,120]
[320708487,1711524660154,-151.0,0.00055067,120]
[320708488,1711524660163,-151.0,0.00055067,120]
[320708489,1711524660173,-151.0,0.00055067,120]
[320708490,1711524660184,-854.646827,0.00055067,120]
[320708491,1711524660194,-854.646827,0.00055067,120]
[320708492,1711524660204,-1294.006513,0.00055067,120]
[320708493,1711524660218,-1165.79384129,0.00055067,120]
[320708494,1711524660229,-527415.91703143,0.00055067,36]
[320708495,1711524660248,-216144.26183335,0.00055067,36]
[320708496,1711524660259,-458.05430212,0.00055068,120]
[320708497,1711524660270,-500.0,0.00055068,120]
[320708498,1711524660281,-10000.0,0.00055068,2]
[320708499,1711524660291,-500.0,0.00055068,120]
[320708500,1711524660301,-507.40918722,0.00055068,120]
[320708501,1711524660311,-500.0,0.00055068,120]
[320708502,1711524660321,-898.85,0.00055068,120]
[320708503,1711524660330,-500.0,0.00055068,120]
[320708504,1711524660345,-555.68,0.00055068,120]
[320708505,1711524660354,-500.0,0.00055068,120]
[320708506,1711524660365,-565.4797096,0.00055068,120]
[320708507,1711524660376,-500.0,0.00055068,120]
[320708508,1711524660386,-500.0,0.00055068,120]
[320708509,1711524660399,-500.0,0.00055068,120]
[320708510,1711524660409,-500.0,0.00055068,120]
[320708511,1711524660418,-500.0,0.00055068,120]
[320708512,1711524660430,-500.0,0.00055068,120]
[320708513,1711524660440,-151.0,0.00055068,120]
[320708514,1711524660449,-500.0,0.00055068,120]
[320708515,1711524660462,-151.0,0.00055068,120]
[320708516,1711524660471,-597.3282056,0.00055068,120]
[320708517,1711524660481,-151.0,0.00055068,120]
[320708518,1711524660491,-151.0,0.00055068,120]
[320708519,1711524660501,-151.0,0.00055068,120]
[320708520,1711524660510,-151.0,0.00055068,120]
[320708521,1711524660520,-500.0,0.00055068,120]
[320708522,1711524660529,-500.0,0.00055068,120]
[320708523,1711524660538,-500.0,0.00055068,120]
[320708524,1711524660548,-500.0,0.00055068,120]
[320708525,1711524660558,-573.56,0.00055068,120]
[320708526,1711524660569,-500.0,0.00055068,120]
[320708527,1711524660578,-500.0,0.00055068,120]
[320708528,1711524660589,-500.0,0.00055068,120]
[320708529,1711524660599,-500.0,0.00055068,120]
[320708530,1711524660608,-1349.2,0.00055068,120]
[320708531,1711524660617,-293.37463369,0.00055068,120]
[320708532,1711524660627,-502.34579145,0.00055068,120]
[320708533,1711524660638,-500.0,0.00055068,120]
[320708534,1711524660647,-526.44081979,0.00055068,120]
[320708535,1711524660656,-500.0,0.00055068,120]
[320708536,1711524660665,-500.0,0.00055068,120]
[320708537,1711524660674,-151.0,0.00055068,120]
[320708538,1711524660683,-151.0,0.00055068,120]
[320708539,1711524660693,-517.79835419,0.00055068,120]
[320708540,1711524660702,-500.0,0.00055068,120]
[320708541,1711524660712,-151.0,0.00055068,120]
[320708542,1711524660722,-151.0,0.00055068,120]
[320708543,1711524660733,-500.0,0.00055068,120]
[320708544,1711524660743,-242.6153006,0.00055068,120]
[320708545,1711524660753,-500.0,0.00055068,120]
[320708546,1711524660763,-526.95401124,0.00055068,120]
[320708547,1711524660773,-500.0,0.00055068,120]
[320708548,1711524660782,-499.26413052,0.00055068,120]
[320708549,1711524660792,-500.0,0.00055068,120]
[320708550,1711524660803,-500.0,0.00055068,120]
[320708551,1711524660814,-500.0,0.00055068,120]
[320708552,1711524660825,-554.18,0.00055068,120]
[320708553,1711524660836,-500.0,0.00055068,120]
[320708554,1711524660845,-500.0,0.00055068,120]
[320708555,1711524660854,-151.0,0.00055068,120]
[320708556,1711524660863,-151.0,0.00055068,120]
[320708557,1711524660875,-500.0,0.00055068,120]
[320708558,1711524660887,-506.98885516,0.00055068,120]
[320708559,1711524660897,-620.25,0.00055068,120]
[320708560,1711524660906,-500.0,0.00055068,120]
[320708561,1711524660915,-500.0,0.00055068,120]
[320708562,1711524660925,-151.0,0.00055068,120]
[320708563,1711524660934,-151.0,0.00055068,120]
[320708564,1711524660944,-500.0,0.00055068,120]
[320708565,1711524660954,-791.55,0.00055068,120]
[320708566,1711524660964,-500.0,0.00055068,120]
[320708567,1711524660975,-500.0,0.00055068,120]
[320708568,1711524660985,-500.0,0.00055068,120]
[320708569,1711524660995,-151.0,0.00055068,120]
[320708570,1711524661005,-151.0,0.00055068,120]
[320708571,1711524661015,-1530.51,0.00055068,120]
[320708572,1711524661024,-500.0,0.00055068,120]
[320708573,1711524661034,-500.0,0.00055068,120]
[320708574,1711524661043,-612.18,0.00055068,120]
[320708575,1711524661052,-500.0,0.00055068,120]
[320708576,1711524661062,-517.37105588,0.00055068,120]
[320708577,1711524661071,-574.70189242,0.00055068,120]
[320708578,1711524661081,-511.87182364,0.00055068,120]
[320708579,1711524661092,-592.4,0.00055068,120]
[320708580,1711524661102,-525.44,0.00055068,120]
[320708581,1711524661111,-520.4238631,0.00055068,120]
[320708582,1711524661121,-509.00214461,0.00055068,120]
[320708583,1711524661130,-500.0,0.00055068,120]
[320708584,1711524661141,-873.5,0.00055068,120]
[320708585,1711524661151,-551.53,0.00055068,120]
[320708586,1711524661160,-151.0,0.00055068,120]
[320708587,1711524661170,-151.0,0.00055068,120]
[320708588,1711524661180,-600.63694199,0.00055068,120]
[320708589,1711524661189,-512.9019656,0.00055068,120]
[320708590,1711524661198,-500.0,0.00055068,120]
[320708591,1711524661208,-152.593239,0.00055068,120]
[320708592,1711524661217,-171.3548,0.00055068,120]
[320708593,1711524661226,-171.3548,0.00055068,120]
[320708594,1711524661235,-500.0,0.00055068,120]
[320708595,1711524661245,-524.48049808,0.00055068,120]
[320708596,1711524661254,-524.48039065,0.00055068,120]
[320708597,1711524661263,-171.3548,0.00055068,120]
[320708598,1711524661272,-171.3548,0.00055068,120]
[320708599,1711524661282,-519.33,0.00055068,120]
[320708600,1711524661291,-525.02708951,0.00055068,120]
[320708601,1711524661300,-509.9928841,0.00055068,120]
[320708602,1711524661309,-500.0,0.00055068,120]
[320708603,1711524661318,-270.63710466,0.00055068,120]
[320708604,1711524661328,-500.0,0.00055068,120]
[320708605,1711524661337,-500.0,0.00055068,120]
[320708606,1711524661347,-151.0,0.00055068,120]
[320708607,1711524661356,-151.0,0.00055068,120]
[320708608,1711524661366,-500.0,0.00055068,120]
[320708609,1711524661375,-500.0,0.00055068,120]
[320708610,1711524661385,-500.0,0.00055068,120]
[320708611,1711524661398,-244.76175951,0.00055068,120]
[320708612,1711524661407,-420.00674818,0.00055068,7]
[320708613,1711524661416,-500.0,0.00055068,120]
[320708614,1711524661426,-500.92149912,0.00055068,120]
[320708615,1711524661435,-540.6808245,0.00055068,120]
[320708616,1711524661444,-500.0,0.00055068,120]
[320708617,1711524661453,-500.0,0.00055068,120]
[320708618,1711524661463,-500.0,0.00055068,120]
[320708619,1711524661472,-500.0,0.00055068,120]
[320708620,1711524661481,-500.0,0.00055068,120]
[320708621,1711524661490,-500.0,0.00055068,120]
[320708622,1711524661499,-500.0,0.00055068,120]
[320708623,1711524661508,-500.0,0.00055068,120]
[320708624,1711524661518,-500.0,0.00055068,120]
[320708625,1711524661527,-371.45526889,0.00055068,120]
[320708626,1711524661547,-128.54473111,0.00055068,120]
[320708627,1711524661556,-151.0,0.00055068,120]
[320708628,1711524661566,-500.0,0.00055068,120]
[320708629,1711524661575,-151.0,0.00055068,120]
[320708630,1711524661584,-519.69931136,0.00055068,120]
[320708631,1711524661594,-165.34746248,0.00055068,120]
[320708632,1711524661603,-500.0,0.00055068,120]
[320708633,1711524661612,-500.0,0.00055068,120]
[320708634,1711524661621,-34.36132163,0.00055068,120]
[320708635,1711524661652,-465.63867837,0.00055068,120]
[320708636,1711524661662,-714.93,0.00055068,120]
[320708637,1711524661671,-500.0,0.00055068,120]
[320708638,1711524661681,-403.58310809,0.00055068,120]
[320708639,1711524661691,-500.0,0.00055068,120]
[320708640,1711524661701,-284.05498528,0.00055068,120]
[320708641,1711524661713,-215.94501472,0.00055068,120]
[320708642,1711524661722,-151.0,0.00055068,7]
[320708643,1711524661731,-576.97,0.00055068,120]
[320708644,1711524661740,-151.0,0.00055068,7]
[320708645,1711524661749,-487.08502383,0.00055068,120]
[320708646,1711524661819,-12.91497617,0.00055068,120]
[320708647,1711524661829,-151.0,0.00055068,7]
[320708648,1711524661838,-151.0,0.00055068,7]
[320708649,1711524661847,-500.0,0.00055068,120]
[320708650,1711524661856,-849.25,0.00055068,120]
[320708651,1711524661866,-500.0,0.00055068,120]
[320708652,1711524661876,-500.0,0.00055068,120]
[320708653,1711524661887,-186.788986,0.00055068,120]
[320708654,1711524661899,-186.788986,0.00055068,120]
[320708655,1711524661908,-500.0,0.00055068,120]
[320708656,1711524661919,-186.788986,0.00055068,120]
[320708657,1711524661928,-186.788986,0.00055068,120]
[320708658,1711524661937,-500.0,0.00055068,120]
[320708659,1711524661947,-500.0,0.00055068,2]
[320708660,1711524661957,-151.0,0.00055068,120]
[320708661,1711524661966,-151.0,0.00055068,120]
[320708662,1711524661976,-500.0,0.00055068,120]
[320708663,1711524661984,-566.32141082,0.00055068,120]
[320708664,1711524661993,-751.04,0.00055068,120]
[320708665,1711524662003,-500.0,0.00055068,120]
[320708666,1711524662013,-500.0,0.00055068,120]
[320708667,1711524662023,-215.52844488,0.00055068,120]
[320708668,1711524662032,-1223.28,0.00055068,120]
[320708669,1711524662041,-500.0,0.00055068,120]
[320708670,1711524662050,-619.31,0.00055068,120]
[320708671,1711524662060,-500.0,0.00055068,120]
[320708672,1711524662069,-500.0,0.00055068,120]
[320708673,1711524662078,-650.43,0.00055068,120]
[320708674,1711524662087,-502.07744116,0.00055068,120]
[320708675,1711524662096,-880.5,0.00055068,120]
[320708676,1711524662106,-500.0,0.00055068,120]
[320708677,1711524662115,-261.273612,0.00055068,120]
[320708678,1711524662125,-1166.22,0.00055068,120]
[320708679,1711524662134,-500.0,0.00055068,120]
[320708680,1711524662147,-500.0,0.00055068,120]
[320708681,1711524662157,-151.0,0.00055068,120]
[320708682,1711524662166,-634.8,0.00055068,120]
[320708683,1711524662175,-151.0,0.00055068,120]
[320708684,1711524662185,-681.66,0.00055068,120]
[320708685,1711524662194,-570.05,0.00055068,120]
[320708686,1711524662203,-543.59,0.00055068,120]
[320708687,1711524662212,-539.35,0.00055068,120]
[320708688,1711524662222,-1162.55,0.00055068,120]
[320708689,1711524662231,-500.0,0.00055068,120]
[320708690,1711524662241,-500.0,0.00055068,120]
[320708691,1711524662251,-968.91,0.00055068,120]
[320708692,1711524662261,-196.167964,0.00055068,14]
[320708693,1711524662271,-532.52,0.00055068,120]
[320708694,1711524662281,-196.167964,0.00055068,14]
[320708695,1711524662290,-500.0,0.00055068,120]
[320708696,1711524662300,-693.36,0.00055068,120]
[320708697,1711524662309,-196.167964,0.00055068,14]
[320708698,1711524662318,-196.167964,0.00055068,14]
[320708699,1711524662327,-7047.69,0.00055068,120]
[320708700,1711524662337,-603.54,0.00055068,120]
[320708701,1711524662346,-586.63,0.00055068,120]
[320708702,1711524662356,-508.48938092,0.00055068,120]
[320708703,1711524662365,-178.25786,0.00055068,120]
[320708704,1711524662374,-178.25786,0.00055068,120]
[320708705,1711524662384,-434.79246005,0.00055068,120]
[320708706,1711524662402,-109.45753995,0.00055068,120]
[320708707,1711524662411,-178.25786,0.00055068,120]
[320708708,1711524662421,-178.25786,0.00055068,120]
[320708709,1711524662431,-500.0,0.00055068,120]
[320708710,1711524662441,-229.72933652,0.00055068,120]
[320708711,1711524662454,-481.80066348,0.00055068,120]
[320708712,1711524662465,-50.3379227,0.00055068,120]
[320708713,1711524662478,-1121.3120773,0.00055068,120]
[320708714,1711524662488,-151.64164,0.00055068,120]
[320708715,1711524662498,-151.64164,0.00055068,120]
[320708716,1711524662508,-608.98,0.00055068,120]
[320708717,1711524662518,-500.0,0.00055068,120]
[320708718,1711524662527,-265.12066063,0.00055068,120]
[320708719,1711524662539,-1851.57933937,0.00055068,120]
[320708720,1711524662548,-151.64164,0.00055068,120]
[320708721,1711524662558,-151.64164,0.00055068,120]
[320708722,1711524662567,-500.0,0.00055068,120]
[320708723,1711524662576,-500.0,0.00055068,120]
[320708724,1711524662585,-554.14058065,0.00055068,120]
[320708725,1711524662598,-93.83941935,0.00055068,120]
[320708726,1711524662607,-1294.32,0.00055068,120]
[320708727,1711524662617,-508.59,0.00055068,120]
[320708728,1711524662626,-121.79864765,0.00055068,120]
[320708729,1711524662654,-510.39377398,0.00055068,120]
[320708730,1711524662664,-500.0,0.00055068,120]
[320708731,1711524662673,-1085.3,0.00055068,120]
[320708732,1711524662682,-500.0,0.00055068,120]
[320708733,1711524662692,-500.0,0.00055068,120]
[320708734,1711524662703,-880.23,0.00055068,120]
[320708735,1711524662712,-548.89,0.00055068,120]
[320708736,1711524662722,-500.0,0.00055068,120]
[320708737,1711524662732,-2222.27,0.00055068,120]
[320708738,1711524662741,-525.12,0.00055068,120]
[320708739,1711524662751,-528.22,0.00055068,120]
[320708740,1711524662762,-549.54,0.00055068,120]
[320708741,1711524662771,-491.324185,0.00055068,30]
[320708742,1711524662780,-491.324185,0.00055068,30]
[320708743,1711524662790,-1225.28,0.00055068,120]
[320708744,1711524662799,-500.0,0.00055068,120]
[320708745,1711524662809,-1533.01,0.00055068,120]
[320708746,1711524662818,-491.324185,0.00055068,30]
[320708747,1711524662827,-491.324185,0.00055068,30]
[320708748,1711524662837,-500.0,0.00055068,120]
[320708749,1711524662846,-512.777212,0.00055068,120]
[320708750,1711524662855,-500.0,0.00055068,120]
[320708751,1711524662864,-500.0,0.00055068,120]
[320708752,1711524662875,-516.12787952,0.00055068,120]
[320708753,1711524662887,-500.0,0.00055068,120]
[320708754,1711524662898,-1081.84,0.00055068,120]
[320708755,1711524662908,-500.0,0.00055068,120]
[320708756,1711524662917,-500.0,0.00055068,120]
[320708757,1711524662928,-500.0,0.00055068,120]
[320708758,1711524662937,-850.37,0.00055068,120]
[320708759,1711524662947,-500.0,0.00055068,120]
[320708760,1711524662958,-500.0,0.00055068,120]
[320708761,1711524662967,-500.0,0.00055068,120]
[320708762,1711524662978,-1237.02,0.00055068,120]
[320708763,1711524662987,-590.24237501,0.00055068,120]
[320708764,1711524662997,-500.0,0.00055068,120]
[320708765,1711524663006,-500.0,0.00055068,120]
[320708766,1711524663015,-500.0,0.00055068,120]
[320708767,1711524663026,-542.767787,0.00055068,120]
[320708768,1711524663035,-542.767787,0.00055068,120]
[320708769,1711524663044,-522.56409499,0.00055068,120]
[320708770,1711524663053,-535.17,0.00055068,120]
[320708771,1711524663063,-500.0,0.00055068,120]
[320708772,1711524663072,-542.767787,0.00055068,120]
[320708773,1711524663081,-876.06,0.00055068,120]
[320708774,1711524663090,-542.767787,0.00055068,120]
[320708775,1711524663099,-500.0,0.00055068,120]
[320708776,1711524663108,-194.51097774,0.00055068,120]
[320708777,1711524663117,-717.03,0.00055068,120]
[320708778,1711524663127,-595.44,0.00055068,120]
[320708779,1711524663136,-649.78,0.00055068,120]
[320708780,1711524663148,-500.0,0.00055068,120]
[320708781,1711524663157,-500.0,0.00055068,120]
[320708782,1711524663167,-1253.021096,0.00055068,120]
[320708783,1711524663176,-1253.021096,0.00055068,120]
[320708784,1711524663185,-521.13299979,0.00055068,120]
[320708785,1711524663195,-935.57,0.00055068,120]
[320708786,1711524663204,-1366.31,0.00055068,120]
[320708787,1711524663213,-822.65,0.00055068,120]
[320708788,1711524663222,-1253.021096,0.00055068,120]
[320708789,1711524663232,-1253.021096,0.00055068,120]
[320708790,1711524663241,-500.0,0.00055068,120]
[320708791,1711524663250,-151.0,0.00055068,120]
[320708792,1711524663260,-181.879668,0.00055068,120]
[320708793,1711524663269,-553.13,0.00055068,120]
[320708794,1711524663279,-823.71,0.00055068,120]
[320708795,1711524663287,-330.20208376,0.00055068,120]
[320708796,1711524663297,-668.08,0.00055068,120]
[320708797,1711524663306,-500.0,0.00055068,120]
[320708798,1711524663315,-999.87,0.00055068,120]
[320708799,1711524663324,-970.5,0.00055068,120]
[320708800,1711524663334,-500.0,0.00055068,120]
[320708801,1711524663343,-500.0,0.00055068,120]
[320708802,1711524663352,-1454.5,0.00055068,120]
[320708803,1711524663361,-224.04549993,0.00055068,120]
[320708804,1711524663370,-579.58,0.00055068,120]
[320708805,1711524663379,-1242.46,0.00055068,120]
[320708806,1711524663388,-661.93,0.00055068,120]
[320708807,1711524663399,-151.0,0.00055068,120]
[320708808,1711524663408,-151.0,0.00055068,120]
[320708809,1711524663418,-1063.66,0.00055068,120]
[320708810,1711524663427,-604.277388,0.00055068,120]
[320708811,1711524663436,-151.0,0.00055068,120]
[320708812,1711524663445,-500.0,0.00055068,120]
[320708813,1711524663455,-155.221815,0.00055068,120]
[320708814,1711524663464,-878.86,0.00055068,120]
[320708815,1711524663473,-500.0,0.00055068,120]
[320708816,1711524663483,-201.505912,0.00055068,120]
[320708817,1711524663492,-201.505912,0.00055068,120]
[320708818,1711524663501,-500.0,0.00055068,120]
[320708819,1711524663510,-299.47626273,0.00055068,120]
[320708820,1711524663520,-201.505912,0.00055068,120]
[320708821,1711524663529,-500.0,0.00055068,120]
[320708822,1711524663539,-201.505912,0.00055068,120]
[320708823,1711524663548,-786.15,0.00055068,120]
[320708824,1711524663558,-800.78,0.00055068,120]
[320708825,1711524663568,-500.0,0.00055068,120]
[320708826,1711524663579,-2593.77,0.00055068,120]
[320708827,1711524663588,-500.0,0.00055068,120]
[320708828,1711524663598,-151.0,0.00055068,120]
[320708829,1711524663607,-151.0,0.00055068,120]
[320708830,1711524663617,-500.0,0.00055068,120]
[320708831,1711524663626,-500.0,0.00055068,120]
[320708832,1711524663635,-637.29,0.00055068,120]
[320708833,1711524663646,-917.83,0.00055068,120]
[320708834,1711524663655,-500.0,0.00055068,120]
[320708835,1711524663664,-926.8,0.00055068,120]
[320708836,1711524663674,-500.0,0.00055068,120]
[320708837,1711524663683,-500.0,0.00055068,120]
[320708838,1711524663692,-500.0,0.00055068,120]
[320708839,1711524663702,-1089.49,0.00055068,120]
[320708840,1711524663711,-151.0,0.00055068,120]
[320708841,1711524663721,-151.0,0.00055068,120]
[320708842,1711524663730,-706.7,0.00055068,120]
[320708843,1711524663739,-1320.22,0.00055068,120]
[320708844,1711524663749,-564.03,0.00055068,120]
[320708845,1711524663759,-500.0,0.00055068,120]
[320708846,1711524663769,-500.0,0.00055068,120]
[320708847,1711524663779,-745.76,0.00055068,120]
[320708848,1711524663788,-827.87,0.00055068,120]
[320708849,1711524663798,-449.895944,0.00055068,120]
[320708850,1711524663807,-449.895944,0.00055068,120]
[320708851,1711524663817,-1629.52,0.00055068,120]
[320708852,1711524663826,-711.59,0.00055068,120]
[320708853,1711524663836,-500.0,0.00055068,120]
[320708854,1711524663845,-810.4,0.00055068,120]
[320708855,1711524663855,-449.895944,0.00055068,120]
[320708856,1711524663864,-449.895944,0.00055068,120]
[320708857,1711524663874,-500.0,0.00055068,120]
[320708858,1711524663884,-218.726235,0.00055068,120]
[320708859,1711524663900,-218.726235,0.00055068,120]
[320708860,1711524663910,-1000.42,0.00055068,120]
[320708861,1711524663919,-299.37892799,0.00055068,120]
[320708862,1711524663930,-500.0,0.00055068,120]
[320708863,1711524663940,-500.0,0.00055068,120]
[320708864,1711524663949,-218.726235,0.00055068,120]
[320708865,1711524663959,-218.726235,0.00055068,120]
[320708866,1711524663969,-555.74,0.00055068,120]
[320708867,1711524663978,-500.0,0.00055068,120]
[320708868,1711524663988,-735.21,0.00055068,120]
[320708869,1711524663998,-1200.620511,0.00055068,120]
[320708870,1711524664008,-1200.620511,0.00055068,120]
[320708871,1711524664018,-500.0,0.00055068,120]
[320708872,1711524664027,-500.0,0.00055068,120]
[320708873,1711524664037,-1484.09,0.00055068,120]
[320708874,1711524664046,-540.245892,0.00055068,120]
[320708875,1711524664056,-540.245892,0.00055068,120]
[320708876,1711524664067,-1200.620511,0.00055068,120]
[320708877,1711524664077,-1200.620511,0.00055068,120]
[320708878,1711524664086,-540.245892,0.00055068,120]
[320708879,1711524664096,-540.245892,0.00055068,120]
[320708880,1711524664105,-517.89074967,0.00055068,120]
[320708881,1711524664117,-910.98,0.00055068,120]
[320708882,1711524664126,-151.0,0.00055068,120]
[320708883,1711524664136,-151.0,0.00055068,120]
[320708884,1711524664147,-577.96,0.00055068,120]
[320708885,1711524664157,-151.0,0.00055068,7]
[320708886,1711524664166,-152.152367,0.00055068,7]
[320708887,1711524664175,-500.58,0.00055068,120]
[320708888,1711524664185,-967.31,0.00055068,120]
[320708889,1711524664195,-889.49,0.00055068,120]
[320708890,1711524664205,-698.22,0.00055068,120]
[320708891,1711524664214,-500.0,0.00055068,120]
[320708892,1711524664223,-500.0,0.00055068,120]
[320708893,1711524664233,-500.0,0.00055068,120]
[320708894,1711524664243,-500.0,0.00055068,120]
[320708895,1711524664252,-500.0,0.00055068,120]
[320708896,1711524664262,-523.683972,0.00055068,120]
[320708897,1711524664271,-500.0,0.00055068,120]
[320708898,1711524664281,-523.683972,0.00055068,120]
[320708899,1711524664290,-500.0,0.00055068,120]
[320708900,1711524664300,-523.683972,0.00055068,120]
[320708901,1711524664310,-512.65630097,0.00055068,120]
[320708902,1711524664320,-523.683972,0.00055068,120]
[320708903,1711524664329,-839.66,0.00055068,120]
[320708904,1711524664339,-530.09,0.00055068,120]
[320708905,1711524664349,-647.79,0.00055068,120]
[320708906,1711524664358,-886.98,0.00055068,120]
[320708907,1711524664368,-500.0,0.00055068,120]
[320708908,1711524664378,-500.0,0.00055068,120]
[320708909,1711524664388,-500.0,0.00055068,120]
[320708910,1711524664399,-500.0,0.00055068,120]
[320708911,1711524664409,-660.04,0.00055068,30]
[320708912,1711524664419,-610.62,0.00055068,120]
[320708913,1711524664429,-151.0,0.00055068,60]
[320708914,1711524664439,-500.0,0.00055068,120]
[320708915,1711524664449,-151.0,0.00055068,60]
[320708916,1711524664460,-500.0,0.00055068,120]
[320708917,1711524664470,-500.0,0.00055068,120]
[320708918,1711524664480,-186.380909,0.00055068,60]
[320708919,1711524664490,-502.65433627,0.00055068,120]
[320708920,1711524664499,-1521.44,0.00055068,120]
[320708921,1711524664510,-500.0,0.00055068,120]
[320708922,1711524664519,-764.98,0.00055068,120]
[320708923,1711524664529,-500.0,0.00055068,120]
[320708924,1711524664539,-500.0,0.00055068,120]
[320708925,1711524664548,-500.0,0.00055068,120]
[320708926,1711524664558,-500.0,0.00055068,120]
[320708927,1711524664567,-500.0,0.00055068,120]
[320708928,1711524664577,-500.0,0.00055068,7]
[320708929,1711524664586,-720.11,0.00055068,120]
[320708930,1711524664596,-500.0,0.00055068,120]
[320708931,1711524664605,-500.0,0.00055068,120]
[320708932,1711524664614,-1383.35,0.00055068,120]
[320708933,1711524664624,-885.31,0.00055068,120]
[320708934,1711524664634,-500.0,0.00055068,120]
[320708935,1711524664646,-500.0,0.00055068,120]
[320708936,1711524664656,-785.51,0.00055068,120]
[320708937,1711524664666,-494.24013652,0.00055068,120]
[320708938,1711524664675,-500.0,0.00055068,120]
[320708939,1711524664685,-1237.35,0.00055068,120]
[320708940,1711524664695,-628.98,0.00055068,120]
[320708941,1711524664705,-530.68278311,0.00055068,120]
[320708942,1711524664714,-611.8,0.00055068,120]
[320708943,1711524664725,-510.04,0.00055068,120]
[320708944,1711524664734,-576.5,0.00055068,120]
[320708945,1711524664744,-517.98,0.00055068,120]
[320708946,1711524664754,-962.85,0.00055068,120]
[320708947,1711524664764,-500.0,0.00055068,120]
[320708948,1711524664774,-581.72,0.00055068,120]
[320708949,1711524664785,-639.3,0.00055068,120]
[320708950,1711524664795,-1358.55,0.00055068,120]
[320708951,1711524664805,-500.0,0.00055068,120]
[320708952,1711524664815,-500.0,0.00055068,120]
[320708953,1711524664825,-500.0,0.00055068,120]
[320708954,1711524664835,-500.0,0.00055068,120]
[320708955,1711524664845,-510.92,0.00055068,120]
[320708956,1711524664854,-500.0,0.00055068,120]
[320708957,1711524664863,-898.75,0.00055068,120]
[320708958,1711524664875,-752.08,0.00055068,120]
[320708959,1711524664886,-500.0,0.00055068,120]
[320708960,1711524664900,-500.0,0.00055068,120]
[320708961,1711524664910,-1642.74,0.00055068,120]
[320708962,1711524664921,-177.051292,0.00055068,120]
[320708963,1711524664930,-177.051292,0.00055068,120]
[320708964,1711524664940,-177.051292,0.00055068,120]
[320708965,1711524664950,-877.388448,0.00055068,120]
[320708966,1711524664961,-877.388448,0.00055068,120]
[320708967,1711524664971,-877.388448,0.00055068,120]
[320708968,1711524664981,-177.051292,0.00055068,120]
[320708969,1711524664990,-500.0,0.00055068,120]
[320708970,1711524665000,-177.051292,0.00055068,120]
[320708971,1711524665010,-776.16,0.00055068,120]
[320708972,1711524665020,-177.051292,0.00055068,120]
[320708973,1711524665030,-500.0,0.00055068,120]
[320708974,1711524665041,-1026.67,0.00055068,120]
[320708975,1711524665051,-877.388448,0.00055068,120]
[320708976,1711524665062,-877.388448,0.00055068,120]
[320708977,1711524665073,-192.42476,0.00055068,120]
[320708978,1711524665083,-877.388448,0.00055068,120]
[320708979,1711524665093,-500.0,0.00055068,120]
[320708980,1711524665103,-192.42476,0.00055068,120]
[320708981,1711524665114,-192.42476,0.00055068,120]